[Event "EYCC Open-U10 2019"]
[Site "Bratislava"]
[Date "2019.08.10"]
[Round "9.23"]
[White "Helms, Finn"]
[Black "Papaioannou, Dimitrios"]
[Result "1-0"]
[ECO "A45"]
[WhiteElo "1787"]
[BlackElo "1629"]
[Annotator "NA RC"]
[PlyCount "115"]
[EventDate "2019.08.02"]
[EventType "swiss"]
[EventCountry "SVK"]
[SourceTitle "playchess.com"]
[Source "ChessBase"]
[SourceQuality "1"]
[TimeControl "40/5400+30:1800+30"]

1. d4 {[%emt 0:00:00]} Nf6 {[%emt 0:00:00]} 2. Bf4 {[%emt 0:00:00]} d5 {[%emt 0:00:00]} 3. e3 {[%emt 0:00:00]} e6 {[%emt 0:00:25]} 4. Nf3 {[%emt 0:00:30]} c5 {[%emt 0:00:31]} 5. c3 {[%emt 0:00:23]} Nc6 {[%emt 0:00:27]} 6. Nbd2 {[%emt 0:00:33]} Be7 {[%emt 0:01:41]} 7. h3 {[%emt 0:01:08]} O-O {[%emt 0:00:54]} 8. Bd3 {[%emt 0:00:46]} b6 {[%emt 0:00:30]} 9. O-O {[%emt 0:00:33]} Bb7 {[%emt 0:01:32]} 10. Ne5 {[%emt 0:04:44]} Nxe5 {[%emt 0:01:33]} 11. Bxe5 {[%emt 0:01:13]} Ne4 {[%emt 0:03:10]} 12. f3 {[%emt 0:10:19]} Nxd2 {[%emt 0:01:52]} 13. Qxd2 {[%emt 0:00:01]} f5 {[%emt 0:03:52]} 14. f4 {[%emt 0:04:48]} Bf6 {[%emt 0:03:10]} 15. Bxf6 {[%emt 0:03:58]} Qxf6 {[%emt 0:00:40]} 16. Rae1 {[%emt 0:02:09]} Rac8 {[%emt 0:02:56]} 17. Rf2 {[%emt 0:06:46]} Qh6 {[%emt 0:02:44]} 18. Rf3 {[%emt 0:03:37]} Bc6 {[%emt 0:02:21]} 19. Qf2 {[%emt 0:04:01]} g6 {[%emt 0:01:53]} 20. g4 {[%emt 0:06:07]} Kf7 {[%emt 0:00:20]} 21. g5 {[%emt 0:00:52]} Qg7 {[%emt 0:00:09]} 22. h4 {[%emt 0:01:53]} Ke7 {[%emt 0:00:13]} 23. Rh3 {[%emt 0:00:38]} c4 {[%emt 0:01:19]} 24. Bb1 {[%emt 0:04:43]} Kd6 {[%emt 0:00:22]} 25. Qh2 {[%emt 0:01:01]} Rf7 {[%emt 0:00:46]} 26. Kf2 {[%emt 0:02:39]} Kc7 {[%emt 0:00:44]} 27. Rh1 {[%emt 0:00:56]} Kb7 {[%emt 0:00:09]} 28. h5 {[%emt 0:02:02]} Rcc7 {[%emt 0:00:10]} 29. hxg6 {[%emt 0:03:49]} hxg6 {[%emt 0:00:14]} 30. Rh8 {[%emt 0:01:36]} Ba4 {[%emt 0:00:42]} 31. Ke2 {[%emt 0:00:34]} Bb5 {[%emt 0:00:36]} 32. Qh6 {[%emt 0:01:03]} Bc6 {[%emt 0:01:18]} 33. Bc2 {[%emt 0:05:08]} Rce7 {[%emt 0:02:51]} 34. b3 {[%emt 0:01:59]} Rc7 {[%emt 0:01:55]} 35. Kd2 {[%emt 0:01:54]} cxb3 {[%emt 0:02:30]} 36. axb3 {[%emt 0:00:31]} Rc8 {[%emt 0:00:18]} 37. Rxc8 {[%emt 0:02:31]} Kxc8 {[%emt 0:00:06]} 38. Qh8+ {[%emt 0:00:46]} Kc7 {[%emt 0:00:02]} 39. Qh3 {[%emt 0:01:57]} Kd6 {[%emt 0:00:23]} 40. Bd1 {[%emt 0:00:00]} Rf8 {[%emt 0:00:00]} 41. Bf3 {[%emt 0:03:02]} Bb5 {[%emt 0:03:10]} 42. Rc1 {[%emt 0:05:05]} Rh8 {[%emt 0:00:45]} 43. Qg2 {[%emt 0:01:06]} Bc6 {[%emt 0:00:03]} 44. c4 {[%emt 0:02:06]} Qh7 {[%emt 0:03:48]} 45. c5+ {[%emt 0:06:34]} bxc5 {[%emt 0:00:34]} 46. dxc5+ {[%emt 0:01:51]} Kc7 {[%emt 0:01:06]} 47. Rh1 {[%emt 0:02:13]} Qg7 {[%emt 0:01:02]} 48. Rb1 {[%emt 0:02:08]} Bb5 {[%emt 0:00:50]} 49. Be2 {[%emt 0:01:32]} a6 {[%emt 0:00:46]} 50. Bxb5 {[%emt 0:01:13]} axb5 {[%emt 0:00:02]} 51. Qe2 {[%emt 0:02:23]} b4 {[%emt 0:02:04]} 52. Qd3 {[%emt 0:03:52]} Rh2+ {[%emt 0:00:46]} 53. Kc1 {[%emt 0:02:24]} Ra2 {[%emt 0:01:20]} 54. Qd4 {[%emt 0:05:20]} Qh7 {[%emt 0:04:03]} 55. Rb2 {[%emt 0:00:32]} Qh1+ {[%emt 0:00:27]} 56. Kc2 {[%emt 0:00:35]} Qg2+ {[%emt 0:00:30]} 57. Kb1 {[%emt 0:00:30]} Qe4+ {[%emt 0:02:39]} 58. Kxa2 {[%emt 0:00:27]} 1-0

[Event "EYCC Open-U10 2019"]
[Site "Bratislava"]
[Date "2019.08.10"]
[Round "9.24"]
[White "Rudnev, Andrei"]
[Black "Efimov, Leonid"]
[Result "1-0"]
[ECO "B26"]
[WhiteElo "1607"]
[BlackElo "1773"]
[Annotator "NA RC"]
[PlyCount "111"]
[EventDate "2019.08.02"]
[EventType "swiss"]
[EventCountry "SVK"]
[SourceTitle "playchess.com"]
[Source "ChessBase"]
[SourceQuality "1"]
[TimeControl "40/5400+30:1800+30"]

1. e4 {[%emt 0:00:00]} c5 {[%emt 0:00:00]} 2. Nc3 {[%emt 0:00:00]} Nc6 {[%emt 0:00:00]} 3. g3 {[%emt 0:00:00]} g6 {[%emt 0:00:00]} 4. Bg2 {[%emt 0:00:00]} Bg7 {[%emt 0:00:03]} 5. d3 {[%emt 0:00:06]} d6 {[%emt 0:00:04]} 6. Be3 {[%emt 0:00:15]} e5 {[%emt 0:00:15]} 7. Qd2 {[%emt 0:00:59]} Nge7 {[%emt 0:01:04]} 8. Bh6 {[%emt 0:01:00]} Bxh6 {[%emt 0:00:17]} 9. Qxh6 {[%emt 0:00:24]} Nd4 {[%emt 0:00:24]} 10. Qd2 {[%emt 0:09:44]} Be6 {[%emt 0:01:48]} 11. Nce2 {[%emt 0:03:24]} d5 {[%emt 0:05:46]} 12. c3 {[%emt 0:01:05]} Ndc6 {[%emt 0:03:00]} 13. Nf3 {[%emt 0:02:44]} O-O {[%emt 0:13:23]} 14. Qh6 {[%emt 0:09:13]} f6 {[%emt 0:03:17]} 15. h4 {[%emt 0:02:08]} dxe4 {[%emt 0:03:13]} 16. dxe4 {[%emt 0:01:42]} Bc4 {[%emt 0:02:24]} 17. Qe3 {[%emt 0:19:05]} Qd3 {[%emt 0:04:34]} 18. Nd2 {[%emt 0:05:21]} Qxe3 {[%emt 0:01:04]} 19. fxe3 {[%emt 0:00:05]} Be6 {[%emt 0:00:20]} 20. O-O-O {[%emt 0:01:39]} Rfd8 {[%emt 0:01:21]} 21. Kc2 {[%emt 0:01:23]} a5 {[%emt 0:01:09]} 22. a4 {[%emt 0:02:05]} c4 {[%emt 0:02:10]} 23. b3 {[%emt 0:06:50]} cxb3+ {[%emt 0:05:06]} 24. Nxb3 {[%emt 0:00:12]} Bc4 {[%emt 0:00:46]} 25. Nec1 {[%emt 0:00:51]} b5 {[%emt 0:05:21]} 26. Nd2 {[%emt 0:04:09]} Rdb8 {[%emt 0:07:31]} 27. Nxc4 {[%emt 0:02:40]} bxc4 {[%emt 0:00:15]} 28. Bf1 {[%emt 0:00:46]} Rc8 {[%emt 0:03:50]} 29. Bxc4+ {[%emt 0:00:20]} Kh8 {[%emt 0:00:27]} 30. Be6 {[%emt 0:01:38]} Rd8 {[%emt 0:01:07]} 31. Rd7 {[%emt 0:01:38]} Rxd7 {[%emt 0:01:12]} 32. Bxd7 Rd8 {[%emt 0:00:30]} 33. Bxc6 {[%emt 0:02:37]} Nxc6 {[%emt 0:00:12]} 34. Rd1 {[%emt 0:00:03]} Rxd1 {[%emt 0:00:38]} 35. Kxd1 {[%emt 0:00:06]} Kg7 {[%emt 0:00:09]} 36. Ke2 {[%emt 0:00:33]} f5 {[%emt 0:00:41]} 37. exf5 {[%emt 0:12:01]} gxf5 {[%emt 0:00:07]} 38. e4 {[%emt 0:00:10]} Kf6 {[%emt 0:01:44]} 39. Kf3 {[%emt 0:00:12]} Nd8 {[%emt 0:01:10]} 40. Nb3 {[%emt 0:00:00]} Nc6 {[%emt 0:00:00]} 41. exf5 {[%emt 0:06:10]} Kxf5 {[%emt 0:00:48]} 42. g4+ {[%emt 0:00:14]} Kf6 {[%emt 0:00:31]} 43. Ke4 {[%emt 0:00:09]} Ke6 {[%emt 0:00:06]} 44. c4 {[%emt 0:02:26]} Kf6 {[%emt 0:00:26]} 45. g5+ {[%emt 0:00:59]} Ke6 {[%emt 0:00:14]} 46. c5 {[%emt 0:00:20]} Ke7 {[%emt 0:00:53]} 47. Kd5 {[%emt 0:00:13]} Kd7 {[%emt 0:00:07]} 48. h5 {[%emt 0:00:11]} Kc7 {[%emt 0:00:12]} 49. Nxa5 {[%emt 0:00:30]} Nxa5 {[%emt 0:00:33]} 50. Kxe5 {[%emt 0:03:01]} Nc6+ {[%emt 0:00:28]} 51. Kf6 {[%emt 0:00:07]} Nd4 {[%emt 0:00:10]} 52. g6 {[%emt 0:00:13]} hxg6 {[%emt 0:00:19]} 53. hxg6 {[%emt 0:00:08]} Kc6 {[%emt 0:00:02]} 54. g7 {[%emt 0:00:11]} Kxc5 {[%emt 0:00:03]} 55. g8=Q {[%emt 0:00:09]} Kb4 {[%emt 0:00:03]} 56. Qg4 {[%emt 0:00:19]} 1-0

[Event "EYCC Open-U10 2019"]
[Site "Bratislava"]
[Date "2019.08.10"]
[Round "9.25"]
[White "Csernyik, Mark"]
[Black "Butolo, Alexandru-Mircea"]
[Result "1-0"]
[ECO "B21"]
[WhiteElo "1648"]
[BlackElo "1593"]
[Annotator "NA RC"]
[PlyCount "85"]
[EventDate "2019.08.02"]
[EventType "swiss"]
[EventCountry "SVK"]
[SourceTitle "playchess.com"]
[Source "ChessBase"]
[SourceQuality "1"]
[TimeControl "40/5400+30:1800+30"]

1. e4 {[%emt 0:00:00]} c5 {[%emt 0:01:21]} 2. d4 {[%emt 0:00:00]} cxd4 {[%emt 0:00:48]} 3. c3 {[%emt 0:00:00]} dxc3 {[%emt 0:00:16]} 4. Nxc3 {[%emt 0:00:00]} e6 {[%emt 0:02:48]} 5. Nf3 {[%emt 0:00:07]} d6 {[%emt 0:02:27]} 6. Bc4 {[%emt 0:00:06]} a6 {[%emt 0:00:41]} 7. O-O {[%emt 0:00:09]} b5 {[%emt 0:00:39]} 8. Bb3 {[%emt 0:00:11]} Nc6 {[%emt 0:00:26]} 9. Qe2 {[%emt 0:00:30]} Be7 {[%emt 0:00:17]} 10. Rd1 {[%emt 0:00:22]} Ra7 {[%emt 0:00:07]} 11. Be3 {[%emt 0:04:10]} Rd7 {[%emt 0:00:08]} 12. Rac1 {[%emt 0:00:21]} Na5 {[%emt 0:00:48]} 13. Nd4 {[%emt 0:02:49]} Nxb3 {[%emt 0:01:54]} 14. axb3 {[%emt 0:03:03]} Bb7 {[%emt 0:00:28]} 15. Na2 {[%emt 0:04:20]} Bg5 {[%emt 0:15:42]} 16. Nxe6 {[%emt 0:02:49]} fxe6 {[%emt 0:03:42]} 17. Qh5+ {[%emt 0:00:11]} g6 {[%emt 0:00:41]} 18. Bxg5 {[%emt 0:02:55]} gxh5 {[%emt 0:00:24]} 19. Bxd8 {[%emt 0:00:08]} Kxd8 {[%emt 0:00:22]} 20. Nb4 {[%emt 0:00:36]} Ne7 {[%emt 0:01:27]} 21. Ra1 {[%emt 0:00:20]} Rg8 {[%emt 0:03:46]} 22. f3 {[%emt 0:00:21]} Ke8 {[%emt 0:03:23]} 23. Nxa6 {[%emt 0:00:36]} Nc6 {[%emt 0:00:32]} 24. f4 {[%emt 0:03:18]} Kf7 {[%emt 0:00:56]} 25. Nc5 {[%emt 0:00:35]} Rc7 {[%emt 0:07:35]} 26. Rxd6 {[%emt 0:00:30]} Nd8 {[%emt 0:00:59]} 27. b4 {[%emt 0:04:32]} Ke7 {[%emt 0:04:01]} 28. Rad1 {[%emt 0:00:44]} Bc6 {[%emt 0:01:53]} 29. g3 {[%emt 0:01:12]} h4 30. Rxd8 {[%emt 0:06:13]} Rxd8 {[%emt 0:09:45]} 31. Rxd8 {[%emt 0:00:07]} hxg3 {[%emt 0:00:35]} 32. Rh8 {[%emt 0:01:35]} gxh2+ {[%emt 0:00:53]} 33. Kxh2 {[%emt 0:00:07]} Kf6 {[%emt 0:01:10]} 34. e5+ {[%emt 0:01:01]} Kg6 {[%emt 0:03:24]} 35. Nxe6 {[%emt 0:00:55]} Ra7 {[%emt 0:00:06]} 36. Rg8+ {[%emt 0:00:18]} Kh6 {[%emt 0:01:24]} 37. Kg3 {[%emt 0:02:07]} Bd5 {[%emt 0:00:26]} 38. Re8 {[%emt 0:00:17]} Kg6 {[%emt 0:00:31]} 39. Nc5 {[%emt 0:00:41]} Ra2 {[%emt 0:00:18]} 40. b3 {[%emt 0:00:00]} Kh5 {[%emt 0:00:00]} 41. Rd8 {[%emt 0:02:42]} Bc6 {[%emt 0:01:48]} 42. Rd6 {[%emt 0:00:37]} Be8 {[%emt 0:01:18]} 43. Ne6 {[%emt 0:01:17]} 1-0

[Event "EYCC Open-U10 2019"]
[Site "Bratislava"]
[Date "2019.08.10"]
[Round "9.26"]
[White "Kisic, Jovan"]
[Black "Ahmadzada, Huseyn"]
[Result "1/2-1/2"]
[ECO "D55"]
[WhiteElo "1757"]
[BlackElo "1497"]
[Annotator "NA RC"]
[PlyCount "47"]
[EventDate "2019.08.02"]
[EventType "swiss"]
[EventCountry "SVK"]
[SourceTitle "playchess.com"]
[Source "ChessBase"]
[SourceQuality "1"]
[TimeControl "40/5400+30:1800+30"]

1. d4 {[%emt 0:01:17]} Nf6 {[%emt 0:00:00]} 2. c4 {[%emt 0:01:04]} e6 {[%emt 0:00:00]} 3. Nc3 {[%emt 0:01:00]} d5 {[%emt 0:00:17]} 4. Bg5 {[%emt 0:00:44]} Be7 {[%emt 0:00:23]} 5. Nf3 {[%emt 0:01:05]} O-O {[%emt 0:00:28]} 6. e3 {[%emt 0:00:49]} c6 {[%emt 0:02:26]} 7. Rc1 {[%emt 0:01:53]} Ne4 {[%emt 0:05:24]} 8. Bxe7 {[%emt 0:01:08]} Qxe7 {[%emt 0:00:19]} 9. Bd3 {[%emt 0:02:16]} f5 {[%emt 0:01:32]} 10. O-O {[%emt 0:05:03]} Bd7 {[%emt 0:03:23]} 11. Ne5 {[%emt 0:02:49]} Be8 {[%emt 0:03:01]} 12. f3 {[%emt 0:01:51]} Nxc3 {[%emt 0:06:50]} 13. Rxc3 {[%emt 0:02:04]} Nd7 {[%emt 0:01:25]} 14. Nxd7 {[%emt 0:07:18]} Qxd7 {[%emt 0:00:13]} 15. f4 {[%emt 0:03:11]} Qe7 {[%emt 0:00:47]} 16. Be2 {[%emt 0:02:43]} Rf6 {[%emt 0:06:51]} 17. Rf3 {[%emt 0:01:13]} Rh6 {[%emt 0:00:50]} 18. Rg3 {[%emt 0:02:35]} Qf6 {[%emt 0:05:55]} 19. Rb3 {[%emt 0:02:12]} b6 {[%emt 0:00:35]} 20. cxd5 {[%emt 0:04:39]} exd5 {[%emt 0:00:42]} 21. Rc3 {[%emt 0:01:52]} Rd8 {[%emt 0:02:22]} 22. b4 {[%emt 0:03:21]} Qe7 {[%emt 0:01:52]} 23. Qb1 {[%emt 0:01:42]} Qf6 {[%emt 0:05:11]} 24. Bd3 {[%emt 0:06:32]} 1/2-1/2

[Event "EYCC Open-U10 2019"]
[Site "Bratislava"]
[Date "2019.08.10"]
[Round "9.27"]
[White "Ermitsch, Magnus"]
[Black "Koblov, Egor"]
[Result "1/2-1/2"]
[ECO "B38"]
[WhiteElo "1750"]
[BlackElo "1312"]
[Annotator "NA RC"]
[PlyCount "108"]
[EventDate "2019.08.02"]
[EventType "swiss"]
[EventCountry "SVK"]
[SourceTitle "playchess.com"]
[Source "ChessBase"]
[SourceQuality "1"]
[TimeControl "40/5400+30:1800+30"]

1. e4 {[%emt 0:00:00]} c5 {[%emt 0:00:00]} 2. Nf3 {[%emt 0:00:48]} Nc6 {[%emt 0:00:00]} 3. d4 {[%emt 0:00:31]} cxd4 {[%emt 0:00:00]} 4. Nxd4 {[%emt 0:00:46]} g6 {[%emt 0:00:00]} 5. c4 {[%emt 0:00:59]} Bg7 {[%emt 0:00:00]} 6. Be3 {[%emt 0:00:50]} Nf6 {[%emt 0:00:00]} 7. Nc3 {[%emt 0:00:51]} O-O {[%emt 0:00:04]} 8. Be2 {[%emt 0:00:55]} b6 {[%emt 0:00:06]} 9. O-O {[%emt 0:02:48]} Bb7 {[%emt 0:00:02]} 10. f3 {[%emt 0:01:59]} e6 {[%emt 0:00:28]} 11. Nxc6 {[%emt 0:11:30]} Bxc6 {[%emt 0:02:21]} 12. Qb3 {[%emt 0:01:43]} Qc7 {[%emt 0:02:24]} 13. Rac1 {[%emt 0:03:03]} Qb7 {[%emt 0:02:13]} 14. Rfd1 {[%emt 0:09:00]} Rfd8 {[%emt 0:02:17]} 15. Nd5 {[%emt 0:01:32]} exd5 {[%emt 0:01:53]} 16. cxd5 {[%emt 0:01:38]} Rac8 {[%emt 0:03:43]} 17. dxc6 {[%emt 0:03:30]} dxc6 {[%emt 0:00:13]} 18. Rd3 {[%emt 0:12:29]} c5 {[%emt 0:02:04]} 19. Rxc5 {[%emt 0:04:27]} Rxd3 {[%emt 0:04:27]} 20. Rxc8+ {[%emt 0:04:33]} Qxc8 {[%emt 0:00:05]} 21. Qxd3 {[%emt 0:03:51]} Nd7 {[%emt 0:02:16]} 22. b3 {[%emt 0:02:56]} Ne5 {[%emt 0:02:24]} 23. Qd2 {[%emt 0:01:04]} Qf8 {[%emt 0:02:54]} 24. f4 {[%emt 0:07:49]} Nc6 {[%emt 0:00:34]} 25. Bc4 {[%emt 0:00:59]} Qb4 {[%emt 0:03:01]} 26. Qxb4 {[%emt 0:00:50]} Nxb4 {[%emt 0:00:06]} 27. a4 {[%emt 0:02:44]} Nc2 {[%emt 0:00:41]} 28. Bf2 {[%emt 0:00:12]} Nd4 {[%emt 0:00:54]} 29. e5 {[%emt 0:04:37]} Nc6 {[%emt 0:00:54]} 30. Bd5 {[%emt 0:06:59]} Nb4 {[%emt 0:00:45]} 31. Be4 {[%emt 0:00:30]} Na2 {[%emt 0:00:47]} 32. Be1 {[%emt 0:02:48]} Nc1 {[%emt 0:00:19]} 33. Kf2 {[%emt 0:03:30]} Nxb3 {[%emt 0:00:20]} 34. Ke3 {[%emt 0:01:30]} Nc5 {[%emt 0:00:54]} 35. Bc6 {[%emt 0:00:09]} f6 {[%emt 0:00:47]} 36. exf6 {[%emt 0:00:32]} Bxf6 {[%emt 0:00:54]} 37. g4 {[%emt 0:01:09]} Kf7 {[%emt 0:00:22]} 38. h3 {[%emt 0:01:02]} Ke6 {[%emt 0:00:22]} 39. a5 {[%emt 0:00:30]} Kd6 {[%emt 0:00:50]} 40. axb6 {[%emt 0:00:00]} Kxc6 {[%emt 0:00:00]} 41. bxa7 {[%emt 0:00:46]} Kb7 {[%emt 0:01:28]} 42. Bb4 {[%emt 0:01:06]} Na6 {[%emt 0:00:45]} 43. Bd6 {[%emt 0:00:33]} Kxa7 {[%emt 0:00:09]} 44. Ke4 {[%emt 0:00:16]} Kb6 {[%emt 0:00:45]} 45. f5 {[%emt 0:00:53]} Nc7 {[%emt 0:00:48]} 46. Be5 {[%emt 0:10:39]} Be7 {[%emt 0:03:28]} 47. Bg3 {[%emt 0:02:10]} Kc6 {[%emt 0:01:59]} 48. h4 {[%emt 0:03:49]} Ne8 {[%emt 0:01:21]} 49. g5 {[%emt 0:01:55]} Nd6+ {[%emt 0:04:13]} 50. Bxd6 {[%emt 0:00:23]} Bxd6 {[%emt 0:01:45]} 51. fxg6 {[%emt 0:00:19]} hxg6 {[%emt 0:00:07]} 52. Kf3 {[%emt 0:00:05]} Kd5 {[%emt 0:00:48]} 53. Kg4 {[%emt 0:00:15]} Be7 {[%emt 0:00:11]} 54. h5 {[%emt 0:00:07]} gxh5+ {[%emt 0:00:15]} 1/2-1/2

[Event "EYCC Open-U10 2019"]
[Site "Bratislava"]
[Date "2019.08.10"]
[Round "9.28"]
[White "Udipi, Kala Kishan"]
[Black "Blumenthal, Michael"]
[Result "0-1"]
[ECO "D02"]
[WhiteElo "1732"]
[BlackElo "1311"]
[Annotator "NA RC"]
[PlyCount "120"]
[EventDate "2019.08.02"]
[EventType "swiss"]
[EventCountry "SVK"]
[SourceTitle "playchess.com"]
[Source "ChessBase"]
[SourceQuality "1"]
[TimeControl "40/5400+30:1800+30"]

1. d4 {[%emt 0:00:00]} d5 {[%emt 0:00:00]} 2. Nf3 {[%emt 0:00:00]} Nf6 {[%emt 0:00:09]} 3. c4 {[%emt 0:00:08]} e6 {[%emt 0:00:06]} 4. cxd5 {[%emt 0:00:20]} exd5 {[%emt 0:00:11]} 5. Nc3 {[%emt 0:00:19]} c6 {[%emt 0:00:27]} 6. Bg5 {[%emt 0:00:28]} Be7 {[%emt 0:00:31]} 7. Qc2 {[%emt 0:00:28]} Bg4 {[%emt 0:01:19]} 8. Ne5 {[%emt 0:01:24]} Bh5 {[%emt 0:00:52]} 9. e3 {[%emt 0:00:40]} Nbd7 {[%emt 0:01:13]} 10. Nxd7 {[%emt 0:03:04]} Nxd7 {[%emt 0:01:45]} 11. Bxe7 {[%emt 0:00:58]} Qxe7 {[%emt 0:00:13]} 12. Be2 {[%emt 0:06:07]} Bg6 {[%emt 0:01:23]} 13. Qd2 {[%emt 0:02:01]} O-O {[%emt 0:01:47]} 14. O-O {[%emt 0:01:37]} Nf6 {[%emt 0:02:45]} 15. Bd3 {[%emt 0:06:36]} Rfe8 {[%emt 0:04:02]} 16. Bxg6 {[%emt 0:01:46]} hxg6 {[%emt 0:01:57]} 17. Rab1 {[%emt 0:00:17]} Nd7 {[%emt 0:02:07]} 18. Rfe1 {[%emt 0:12:43]} Nb6 {[%emt 0:06:25]} 19. b3 {[%emt 0:12:16]} Rad8 {[%emt 0:05:15]} 20. e4 {[%emt 0:09:23]} dxe4 {[%emt 0:07:30]} 21. Rxe4 {[%emt 0:00:25]} Qd7 {[%emt 0:05:48]} 22. Rbe1 {[%emt 0:04:38]} Rxe4 {[%emt 0:02:48]} 23. Nxe4 {[%emt 0:05:03]} Nd5 {[%emt 0:07:50]} 24. Nc5 {[%emt 0:04:15]} Qc7 {[%emt 0:01:53]} 25. Qg5 {[%emt 0:01:29]} Nf6 {[%emt 0:03:37]} 26. Qe5 {[%emt 0:01:19]} Re8 {[%emt 0:06:06]} 27. Qxe8+ {[%emt 0:00:31]} Nxe8 {[%emt 0:00:08]} 28. Rxe8+ {[%emt 0:00:05]} Kh7 {[%emt 0:00:08]} 29. Re1 {[%emt 0:02:12]} b6 {[%emt 0:04:24]} 30. Ne4 {[%emt 0:02:33]} Qd7 {[%emt 0:01:15]} 31. Rd1 {[%emt 0:00:51]} f6 {[%emt 0:01:26]} 32. f3 {[%emt 0:02:06]} Kg8 {[%emt 0:00:48]} 33. Kf2 {[%emt 0:01:55]} Kf7 {[%emt 0:00:28]} 34. h3 {[%emt 0:02:25]} Qe7 {[%emt 0:02:00]} 35. Rc1 {[%emt 0:02:19]} f5 {[%emt 0:03:15]} 36. Ng3 {[%emt 0:01:54]} Qh4 {[%emt 0:01:30]} 37. Rxc6 {[%emt 0:02:15]} f4 {[%emt 0:00:43]} 38. Rc7+ {[%emt 0:00:13]} Kg8 {[%emt 0:01:04]} 39. Rxa7 {[%emt 0:00:13]} fxg3+ {[%emt 0:00:17]} 40. Ke3 {[%emt 0:00:00]} Qg5+ {[%emt 0:00:00]} 41. f4 {[%emt 0:00:56]} Qd5 {[%emt 0:02:03]} 42. Ra6 {[%emt 0:00:18]} Qxg2 {[%emt 0:00:35]} 43. Rxb6 {[%emt 0:00:06]} Qf2+ {[%emt 0:00:35]} 44. Kd3 {[%emt 0:00:08]} g2 {[%emt 0:01:49]} 45. Rxg6 {[%emt 0:00:10]} g1=Q {[%emt 0:01:08]} 46. Rxg1 {[%emt 0:00:07]} Qxg1 {[%emt 0:00:14]} 47. a4 {[%emt 0:00:18]} Qc1 {[%emt 0:01:25]} 48. a5 {[%emt 0:00:32]} Qa3 {[%emt 0:00:29]} 49. d5 {[%emt 0:00:11]} Qxb3+ {[%emt 0:00:52]} 50. Kd4 {[%emt 0:00:05]} Qb4+ {[%emt 0:00:21]} 51. Ke5 {[%emt 0:00:06]} Qxa5 {[%emt 0:00:22]} 52. Ke6 {[%emt 0:00:12]} Qd8 {[%emt 0:00:29]} 53. d6 {[%emt 0:00:11]} Kh7 {[%emt 0:00:26]} 54. d7 {[%emt 0:00:15]} Kh6 {[%emt 0:00:22]} 55. Kd6 {[%emt 0:00:21]} Kh5 {[%emt 0:00:16]} 56. f5 {[%emt 0:00:14]} Kh4 {[%emt 0:00:32]} 57. f6 {[%emt 0:00:05]} gxf6 {[%emt 0:00:17]} 58. Ke6 {[%emt 0:00:11]} Kxh3 {[%emt 0:00:21]} 59. Kd6 {[%emt 0:00:16]} f5 {[%emt 0:00:12]} 60. Ke5 {[%emt 0:00:08]} Qxd7 0-1

[Event "EYCC Open-U10 2019"]
[Site "Bratislava"]
[Date "2019.08.10"]
[Round "9.29"]
[White "Farias, David Nuno M E"]
[Black "Panda, Barnabas"]
[Result "1-0"]
[ECO "B56"]
[WhiteElo "1372"]
[BlackElo "1625"]
[Annotator "NA RC"]
[PlyCount "61"]
[EventDate "2019.08.02"]
[EventType "swiss"]
[EventCountry "SVK"]
[SourceTitle "playchess.com"]
[Source "ChessBase"]
[SourceQuality "1"]
[TimeControl "40/5400+30:1800+30"]

1. e4 {[%emt 0:00:00]} c5 {[%emt 0:00:15]} 2. Nf3 {[%emt 0:00:00]} Nc6 {[%emt 0:00:23]} 3. d4 {[%emt 0:00:00]} cxd4 {[%emt 0:00:32]} 4. Nxd4 {[%emt 0:00:00]} Nf6 {[%emt 0:00:21]} 5. Nc3 {[%emt 0:00:56]} d6 {[%emt 0:00:56]} 6. Be3 {[%emt 0:01:49]} Ng4 {[%emt 0:01:17]} 7. Nf5 {[%emt 0:29:18]} Nxe3 {[%emt 0:02:59]} 8. Nxe3 {[%emt 0:00:05]} e6 {[%emt 0:03:34]} 9. Be2 {[%emt 0:02:51]} Be7 {[%emt 0:04:29]} 10. O-O {[%emt 0:00:22]} O-O {[%emt 0:02:10]} 11. Kh1 {[%emt 0:08:16]} a6 {[%emt 0:05:52]} 12. f4 {[%emt 0:03:34]} b5 {[%emt 0:04:21]} 13. a3 {[%emt 0:00:17]} Qb6 {[%emt 0:04:00]} 14. Qd2 {[%emt 0:08:53]} Bb7 {[%emt 0:03:14]} 15. Rad1 {[%emt 0:06:43]} Rac8 {[%emt 0:06:32]} 16. Rf3 {[%emt 0:07:23]} Bf6 {[%emt 0:06:17]} 17. Ng4 {[%emt 0:04:02]} Bxc3 {[%emt 0:09:39]} 18. bxc3 {[%emt 0:03:09]} Rfd8 {[%emt 0:02:37]} 19. Rg3 {[%emt 0:04:29]} Ne7 {[%emt 0:05:53]} 20. f5 {[%emt 0:05:53]} exf5 {[%emt 0:06:58]} 21. exf5 {[%emt 0:00:12]} Nxf5 {[%emt 0:02:32]} 22. Nh6+ {[%emt 0:01:53]} Nxh6 {[%emt 0:00:52]} 23. Qxh6 {[%emt 0:00:13]} g6 {[%emt 0:00:18]} 24. Rh3 {[%emt 0:01:04]} Qf2 {[%emt 0:05:22]} 25. Qxh7+ {[%emt 0:00:11]} Kf8 {[%emt 0:00:13]} 26. Bf3 {[%emt 0:01:16]} Qb6 {[%emt 0:02:25]} 27. Rf1 {[%emt 0:01:47]} d5 {[%emt 0:04:46]} 28. Bg4 {[%emt 0:01:43]} Rc7 {[%emt 0:00:57]} 29. Qh8+ {[%emt 0:00:16]} Ke7 {[%emt 0:00:18]} 30. Qe5+ {[%emt 0:00:05]} Kf8 {[%emt 0:00:43]} 31. Rh8# {[%emt 0:00:07]} 1-0

[Event "EYCC Open-U10 2019"]
[Site "Bratislava"]
[Date "2019.08.10"]
[Round "9.30"]
[White "Bazilius, Augustinas"]
[Black "Artissi, Albert"]
[Result "1-0"]
[ECO "D35"]
[WhiteElo "1666"]
[BlackElo "1250"]
[Annotator "NA RC"]
[PlyCount "77"]
[EventDate "2019.08.02"]
[EventType "swiss"]
[EventCountry "SVK"]
[SourceTitle "playchess.com"]
[Source "ChessBase"]
[SourceQuality "1"]
[TimeControl "40/5400+30:1800+30"]

1. d4 d5 2. c4 e6 3. Nc3 Nf6 4. cxd5 exd5 5. Bg5 Nbd7 6. e3 h6 7. Bh4 Bb4 8. Bd3 O-O 9. Nge2 c6 10. O-O Qb6 11. Qc2 Bd6 12. h3 g5 13. Bg3 Bxg3 14. Nxg3 Nb8 15. Bf5 Nbd7 16. f4 gxf4 17. Rxf4 Re8 18. Bxd7 Nxd7 19. Qf5 Ne5 20. Qh5 Qxb2 21. dxe5 Qxa1+ 22. Rf1 Qxf1+ 23. Kxf1 Kg7 24. Nf5+ Bxf5 25. Qxf5 Re6 26. Ne2 Rae8 27. Nf4 Rxe5 28. Nh5+ Kf8 29. Qg4 Rxe3 30. Qg7+ Ke7 31. Qxh6 d4 32. Qf6+ Kf8 33. Qg7+ Ke7 34. Qxd4 Re6 35. Ng7 Rf6+ 36. Kg1 Rg8 37. Qe5+ Kf8 38. Qxf6 Rxg7 39. Qd8# 1-0

[Event "EYCC Open-U10 2019"]
[Site "Bratislava"]
[Date "2019.08.10"]
[Round "9.31"]
[White "Romanov, Vladislav O."]
[Black "Englisch, Tobias"]
[Result "1/2-1/2"]
[ECO "A16"]
[WhiteElo "1099"]
[BlackElo "1643"]
[Annotator "NA RC"]
[PlyCount "148"]
[EventDate "2019.08.02"]
[EventType "swiss"]
[EventCountry "SVK"]
[SourceTitle "playchess.com"]
[Source "ChessBase"]
[SourceQuality "1"]
[TimeControl "40/5400+30:1800+30"]

1. c4 Nf6 2. Nc3 d5 3. cxd5 Nxd5 4. g3 Nxc3 5. bxc3 g6 6. Bg2 Bg7 7. Nf3 c5 8. O-O Nc6 9. Rb1 O-O 10. c4 Qc7 11. d3 b6 12. Bb2 Bxb2 13. Rxb2 Bb7 14. Qc2 e5 15. e3 Rad8 16. a3 Rd6 17. Rbb1 Rfd8 18. Rfd1 Qd7 19. Ne1 Na5 20. Bxb7 Qxb7 21. Qc3 Qe7 22. e4 Qe6 23. Rbc1 f6 24. Ng2 Qd7 25. Ne1 Rd4 26. f3 Kg7 27. Qc2 Nxc4 28. Kf2 Nxa3 29. Qa2 Nb5 30. Qb3 Nc7 31. Qa3 a6 32. Qb3 Rb4 33. Qa3 Qd4+ 34. Kf1 Qb2 35. Qxb2 Rxb2 36. Rb1 Rxb1 37. Rxb1 b5 38. Rc1 Ne6 39. Ra1 Ra8 40. Nc2 b4 41. Ne3 Nd4 42. Kf2 b3 43. Nc4 a5 44. Nb2 Nb5 45. Ke3 Nd4 46. Kf2 Kf7 47. Ra4 Ke6 48. Nc4 Rb8 49. Nb2 Nc6 50. Ke3 Rb4 51. Ra1 Kd7 52. f4 exf4+ 53. gxf4 Kc7 54. Kd2 Kb6 55. Na4+ Kb5 56. Nc3+ Ka6 57. Nd5 Rd4 58. Kc3 Nb4 59. Nxb4+ Rxb4 60. e5 fxe5 61. fxe5 Rb6 62. e6 Rxe6 63. Kxb3 Re2 64. Kc4 Rxh2 65. Kxc5 Rc2+ 66. Kd5 Rg2 67. d4 h5 68. Ke5 h4 69. d5 Kb6 70. d6 Kc6 71. Rc1+ Kd7 72. Rc7+ Kd8 73. Rh7 Rd2 74. Ke6 Re2+ 1/2-1/2